[Event "US Open 2021"]
[Site "Crowne Plaza Cherry Hill, United States"]
[Date "2021.08.01"]
[Round "2.13"]
[White "Homa, Seth"]
[Black "Sharp, Dale"]
[Result "1-0"]
[TimeControl "40/100;SD/30;+30"]
[WhiteElo "2394"]
[BlackElo "2019"]

1. c4 {[%clk 01:40:55]} {[%emt 00:00:12]} c5 {[%clk 01:40:56]} 2. Nc3 {[%clk
01:41:08]} {[%emt 00:00:48]} Nc6 {[%clk 01:41:21]} 3. g3 {[%clk 01:41:21]} g6
{[%clk 01:41:45]} 4. Bg2 {[%clk 01:41:43]} {[%emt 00:00:06]} Bg7 {[%clk
01:42:10]} {[%emt 00:00:06]} 5. e4 {[%clk 01:41:58]} {[%emt 00:00:16]} d6
{[%clk 01:41:27]} {[%emt 00:01:49]} 6. d3 {[%clk 01:42:02]} e6 {[%clk
01:40:21]} {[%emt 00:01:39]} 7. Nge2 {[%clk 01:42:17]} Nge7 {[%clk 01:40:35]}
{[%emt 00:00:27]} 8. O-O {[%clk 01:42:32]} {[%emt 00:00:41]} O-O {[%clk
01:40:02]} {[%emt 00:01:00]} 9. Rb1 {[%clk 01:42:27]} {[%emt 00:00:11]} a5
{[%clk 01:36:10]} {[%emt 00:04:53]} 10. a3 {[%clk 01:39:57]} {[%emt 00:02:35]}
f5 {[%clk 01:30:26]} {[%emt 00:05:52]} 11. f4 {[%clk 01:18:57]} {[%emt
00:22:10]} e5 {[%clk 01:23:10]} {[%emt 00:07:46]} 12. b3 {[%clk 00:54:58]}
{[%emt 00:24:15]} Nd4 {[%clk 01:18:10]} {[%emt 00:05:13]} 13. Nxd4 {[%clk
00:55:07]} {[%emt 00:00:33]} exd4 {[%clk 01:18:27]} 14. Nb5 {[%clk 00:55:03]}
{[%emt 00:00:33]} Nc6 {[%clk 01:16:14]} {[%emt 00:03:17]} 15. exf5 {[%clk
00:52:17]} {[%emt 00:02:56]} Bxf5 {[%clk 01:15:51]} {[%emt 00:01:09]} 16. Bd5+
{[%clk 00:52:35]} Kh8 {[%clk 01:16:09]} 17. g4 {[%clk 00:52:34]} {[%emt
00:00:55]} Bc8 {[%clk 01:15:04]} {[%emt 00:02:10]} 18. Rb2 {[%clk 00:51:15]}
{[%emt 00:01:23]} Ne7 {[%clk 01:11:36]} {[%emt 00:03:14]} 19. Bg2 {[%clk
00:51:03]} {[%emt 00:01:18]} Rf7 {[%clk 01:07:13]} {[%emt 00:04:24]} 20. Qf3
{[%clk 00:50:02]} {[%emt 00:02:00]} Rb8 {[%clk 01:04:02]} {[%emt 00:03:38]} 21.
Re2 {[%clk 00:50:02]} b6 {[%clk 01:03:26]} {[%emt 00:01:34]} 22. Rfe1 {[%clk
00:49:36]} {[%emt 00:00:36]} Bb7 {[%clk 01:01:37]} {[%emt 00:02:17]} 23. Qh3
{[%clk 00:49:42]} {[%emt 00:00:14]} d5 {[%clk 01:00:46]} {[%emt 00:01:24]} 24.
Re6 {[%clk 00:48:33]} {[%emt 00:02:01]} Bc8 {[%clk 00:54:50]} {[%emt 00:06:23]}
25. Rd6 {[%clk 00:47:31]} {[%emt 00:01:10]} Qf8 {[%clk 00:54:45]} {[%emt
00:00:58]} 26. cxd5 {[%clk 00:40:18]} {[%emt 00:07:18]} Rf6 {[%clk 00:45:20]}
{[%emt 00:10:01]} 27. Rxf6 {[%clk 00:40:14]} {[%emt 00:01:03]} Qxf6 {[%clk
00:45:33]} 28. d6 {[%clk 00:40:20]} {[%emt 00:01:18]} Ng8 {[%clk 00:44:55]} 29.
f5 {[%clk 00:26:39]} {[%emt 00:15:52]} Bd7 {[%clk 00:42:47]} {[%emt 00:02:39]}
30. g5 {[%clk 00:22:53]} {[%emt 00:02:51]} Qxf5 {[%clk 00:41:32]} {[%emt
00:01:44]} 31. Qxf5 {[%clk 00:23:04]} Bxf5 {[%clk 00:41:51]} {[%emt 00:00:34]}
32. Bc6 {[%clk 00:22:55]} {[%emt 00:00:33]} Bf8 {[%clk 00:37:39]} {[%emt
00:05:32]} 33. d7 {[%clk 00:22:07]} {[%emt 00:00:31]} Rd8 {[%clk 00:36:32]}
{[%emt 00:01:38]} 34. Re8 {[%clk 00:21:21]} {[%emt 00:01:44]} Be7 {[%clk
00:37:00]} 35. Nd6 {[%clk 00:12:09]} {[%emt 00:09:24]} Bxd7 {[%clk 00:33:56]}
{[%emt 00:03:02]} 36. Rxd8 {[%clk 00:11:58]} {[%emt 00:00:46]} Bxc6 {[%clk
00:33:55]} {[%emt 00:00:42]} 37. Rc8 {[%clk 00:12:01]} {[%emt 00:00:13]} Bd7
{[%clk 00:24:08]} {[%emt 00:10:19]} 38. Rc7 {[%clk 00:12:29]} {[%emt 00:01:05]}
Bg4 {[%clk 00:23:09]} 39. Bf4 {[%clk 00:12:58]} h6 {[%clk 00:20:23]} {[%emt
00:03:53]} 40. Nf7+ {[%clk 00:43:06]} {[%emt 00:00:32]} Kg7 {[%clk 00:48:05]}
{[%emt 00:02:35]} 41. Nxh6 {[%clk 00:43:22]} {[%emt 00:00:08]} Nxh6 {[%clk
00:47:37]} {[%emt 00:01:32]} 42. gxh6+ {[%emt 00:00:20]} Kf8 43. Rxe7 1-0

[Event "US Open 2021"]
[Site "Crowne Plaza Cherry Hill, United States"]
[Date "2021.08.01"]
[Round "2.14"]
[White "Nguyen, Tinh Son"]
[Black "Ramer, Scott"]
[Result "0-1"]
[TimeControl "40/100;SD/30;+30"]
[WhiteElo "2019"]
[BlackElo "2343"]

1. e4 {[%clk 01:40:59]} c5 {[%clk 01:40:52]} {[%emt 00:00:28]} 2. Nf3 {[%clk
01:41:26]} e6 {[%clk 01:41:13]} 3. d4 {[%clk 01:41:53]} cxd4 {[%clk 01:41:34]}
4. Nxd4 {[%clk 01:42:21]} a6 {[%clk 01:41:55]} {[%emt 00:00:06]} 5. c4 {[%clk
01:42:47]} {[%emt 00:00:34]} Nf6 {[%clk 01:42:10]} {[%emt 00:00:03]} 6. Nc3
{[%clk 01:43:15]} Qc7 {[%clk 01:42:28]} {[%emt 00:00:18]} 7. a3 {[%clk
01:43:40]} Be7 {[%clk 01:41:06]} {[%emt 00:01:57]} 8. Be3 {[%clk 01:44:02]} d6
{[%clk 01:39:59]} {[%emt 00:01:32]} 9. Be2 {[%clk 01:44:26]} Nbd7 {[%clk
01:39:16]} {[%emt 00:01:08]} 10. O-O {[%clk 01:44:21]} {[%emt 00:00:41]} O-O
{[%clk 01:39:12]} {[%emt 00:00:56]} 11. f3 {[%clk 01:43:45]} {[%emt 00:00:38]}
b6 {[%clk 01:38:12]} {[%emt 00:01:29]} 12. Qd2 {[%clk 01:44:03]} {[%emt
00:00:39]} Bb7 {[%clk 01:37:48]} {[%emt 00:00:43]} 13. Rfc1 {[%clk 01:44:20]}
{[%emt 00:00:14]} Rac8 {[%clk 01:36:23]} {[%emt 00:01:37]} 14. a4 {[%clk
01:43:43]} {[%emt 00:01:13]} Rfe8 {[%clk 01:20:23]} {[%emt 00:16:28]} 15. a5
{[%clk 01:43:15]} {[%emt 00:01:51]} bxa5 {[%clk 01:19:51]} {[%emt 00:00:20]} 16.
Nb3 {[%clk 01:43:33]} Qb8 {[%clk 01:18:11]} {[%emt 00:02:17]} 17. Nxa5 {[%clk
01:42:46]} {[%emt 00:01:37]} Ba8 {[%clk 01:18:10]} {[%emt 00:00:06]} 18. Bf1
{[%clk 01:35:58]} {[%emt 00:07:20]} Bd8 {[%clk 01:10:01]} {[%emt 00:08:32]} 19.
Na4 {[%clk 01:09:55]} {[%emt 00:27:10]} d5 {[%clk 00:59:34]} {[%emt 00:10:25]}
20. cxd5 {[%clk 01:06:37]} {[%emt 00:04:23]} Rxc1 {[%clk 00:58:51]} {[%emt
00:01:10]} 21. Rxc1 {[%clk 01:07:06]} exd5 {[%clk 00:58:01]} {[%emt 00:00:52]}
22. Bxa6 {[%clk 00:59:59]} {[%emt 00:07:35]} Bc7 {[%clk 00:48:34]} {[%emt
00:10:46]} 23. g3 {[%clk 00:51:21]} {[%emt 00:08:11]} dxe4 {[%clk 00:47:57]}
{[%emt 00:01:36]} 24. f4 {[%clk 00:39:06]} {[%emt 00:12:28]} Rd8 {[%clk
00:39:21]} {[%emt 00:09:01]} 25. Qe1 {[%clk 00:35:38]} {[%emt 00:04:02]} Nd5
{[%clk 00:28:00]} {[%emt 00:11:42]} 26. Bd4 {[%clk 00:34:20]} {[%emt 00:02:29]}
N7b6 {[%clk 00:26:16]} {[%emt 00:01:30]} 27. Nc5 {[%clk 00:23:13]} {[%emt
00:11:41]} Nxf4 {[%clk 00:20:24]} {[%emt 00:06:50]} 28. Qe3 {[%clk 00:21:34]}
{[%emt 00:01:53]} Nbd5 {[%clk 00:17:36]} {[%emt 00:04:01]} 29. Qxe4 {[%clk
00:21:04]} {[%emt 00:00:18]} Nf6 {[%clk 00:13:12]} {[%emt 00:04:40]} 30. Qe3
{[%clk 00:18:24]} {[%emt 00:03:07]} Ng4 {[%clk 00:11:46]} {[%emt 00:03:33]} 0-1

[Event "US Open 2021"]
[Site "Crowne Plaza Cherry Hill, United States"]
[Date "2021.08.01"]
[Round "2.15"]
[White "Bonin, Jay"]
[Black "Chan, Mathew"]
[Result "1/2-1/2"]
[TimeControl "40/100;SD/30;+30"]
[WhiteElo "2323"]
[BlackElo "2014"]

1. d4 {[%clk 01:40:52]} d5 {[%clk 01:40:57]} 2. Nf3 {[%clk 01:41:13]} {[%emt
00:00:17]} Nf6 {[%clk 01:41:22]} 3. c4 {[%clk 01:41:34]} {[%emt 00:00:10]} e6
{[%clk 01:41:48]} 4. g3 {[%clk 01:41:50]} {[%emt 00:00:14]} dxc4 {[%clk
01:42:14]} {[%emt 00:00:12]} 5. Qa4+ {[%clk 01:42:14]} Nbd7 {[%clk 01:42:08]}
{[%emt 00:00:43]} 6. Bg2 {[%clk 01:42:29]} {[%emt 00:00:29]} a6 {[%clk
01:42:01]} {[%emt 00:00:16]} 7. Qxc4 {[%clk 01:42:53]} {[%emt 00:00:29]} b5
{[%clk 01:42:11]} 8. Qc6 {[%clk 01:42:59]} {[%emt 00:00:20]} Rb8 {[%clk
01:42:05]} {[%emt 00:00:52]} 9. Bg5 {[%clk 01:42:04]} {[%emt 00:01:06]} Bb7
{[%clk 01:41:44]} {[%emt 00:01:29]} 10. Qc2 {[%clk 01:41:36]} {[%emt 00:00:20]}
Be7 {[%clk 01:40:43]} {[%emt 00:01:32]} 11. Nbd2 {[%clk 01:41:45]} {[%emt
00:00:33]} O-O {[%clk 01:38:38]} {[%emt 00:02:49]} 12. O-O {[%clk 01:42:01]}
{[%emt 00:00:38]} h6 {[%clk 01:36:38]} {[%emt 00:01:59]} 13. Bxf6 {[%clk
01:42:04]} {[%emt 00:00:27]} Nxf6 {[%clk 01:36:42]} {[%emt 00:00:14]} 14. Rac1
{[%clk 01:40:45]} {[%emt 00:01:44]} Rc8 {[%clk 01:34:22]} {[%emt 00:03:01]} 15.
Nb3 {[%clk 01:40:41]} {[%emt 00:00:19]} Be4 {[%clk 01:33:16]} {[%emt 00:01:41]}
16. Qd1 {[%clk 01:39:29]} {[%emt 00:01:38]} Nd7 {[%clk 01:30:30]} {[%emt
00:04:03]} 17. Ne1 {[%clk 01:32:35]} {[%emt 00:07:11]} Bxg2 {[%clk 01:27:58]}
{[%emt 00:02:55]} 18. Kxg2 {[%clk 01:32:11]} {[%emt 00:00:26]} c5 {[%clk
01:26:03]} {[%emt 00:02:46]} 19. dxc5 {[%clk 01:32:26]} Nxc5 {[%clk 01:26:07]}
{[%emt 00:00:21]} 20. Qxd8 {[%clk 01:32:41]} {[%emt 00:00:21]} Rfxd8 {[%clk
01:26:27]} {[%emt 00:00:05]} 21. Nxc5 {[%clk 01:33:04]} {[%emt 00:00:15]} Rxc5
{[%clk 01:26:32]} {[%emt 00:00:30]} 22. Rxc5 {[%clk 01:33:18]} {[%emt
00:00:23]} Bxc5 {[%clk 01:26:58]} 23. Nd3 {[%clk 01:33:42]} Bd4 {[%clk
01:26:03]} {[%emt 00:02:52]} 24. Rc1 {[%clk 01:33:26]} e5 {[%clk 01:20:05]}
{[%emt 00:05:50]} 25. Rc2 {[%clk 01:25:20]} {[%emt 00:08:35]} a5 {[%clk
01:10:27]} {[%emt 00:10:16]} 26. Kf3 {[%clk 01:16:21]} {[%emt 00:09:20]} f5
{[%clk 01:02:54]} {[%emt 00:08:50]} 27. e4 {[%clk 01:15:41]} {[%emt 00:00:11]}
g6 {[%clk 01:01:24]} {[%emt 00:02:23]} 28. Rc6 {[%clk 01:12:52]} {[%emt
00:03:24]} Kg7 {[%clk 00:55:50]} {[%emt 00:05:57]} 29. g4 {[%clk 00:58:05]}
{[%emt 00:15:19]} fxg4+ {[%clk 00:47:56]} {[%emt 00:08:15]} 30. Kxg4 {[%clk
00:58:23]} Rf8 {[%clk 00:45:47]} {[%emt 00:02:57]} 31. Ra6 {[%clk 00:50:11]}
{[%emt 00:08:51]} a4 {[%clk 00:40:47]} {[%emt 00:05:01]} 32. Ra5 {[%clk
00:47:11]} {[%emt 00:03:29]} h5+ {[%clk 00:36:15]} {[%emt 00:05:26]} 33. Kg3
{[%clk 00:46:31]} {[%emt 00:00:46]} Rb8 {[%clk 00:29:55]} {[%emt 00:07:31]} 34.
h4 {[%clk 00:44:55]} {[%emt 00:02:19]} Bb6 {[%clk 00:24:18]} {[%emt 00:05:44]}
35. Ra6 {[%clk 00:45:14]} Bd4 {[%clk 00:24:34]} 36. Re6 {[%clk 00:39:29]}
{[%emt 00:06:36]} Kf7 {[%clk 00:23:02]} {[%emt 00:01:36]} 37. Rd6 {[%clk
00:39:46]} {[%emt 00:00:12]} Rc8 {[%clk 00:18:07]} {[%emt 00:05:43]} 38. Rd5
{[%clk 00:32:11]} {[%emt 00:09:25]} Rc2 {[%clk 00:16:46]} {[%emt 00:00:24]} 39.
Nxe5+ {[%clk 00:28:44]} {[%emt 00:04:17]} Bxe5+ {[%clk 00:16:57]} 40. Rxe5
{[%clk 00:59:12]} Rxb2 {[%clk 00:47:18]} {[%emt 00:00:34]} 41. a3 {[%clk
00:58:03]} {[%emt 00:01:55]} Kf6 {[%clk 00:44:11]} {[%emt 00:03:05]} 42. Rc5
{[%clk 00:57:19]} {[%emt 00:00:58]} Rb3+ {[%clk 00:36:00]} {[%emt 00:08:38]} 43.
Kf4 {[%clk 00:56:52]} {[%emt 00:00:57]} Rxa3 {[%clk 00:35:54]} {[%emt
00:00:57]} 44. Rxb5 {[%clk 00:57:05]} {[%emt 00:00:13]} Ra1 {[%clk 00:35:44]}
{[%emt 00:00:44]} 45. Rb6+ {[%clk 00:54:34]} {[%emt 00:02:49]} Kf7 {[%clk
00:33:20]} {[%emt 00:02:58]} 46. Ke5 {[%clk 00:49:54]} {[%emt 00:05:27]} Rh1
{[%clk 00:29:22]} {[%emt 00:03:58]} 47. Rb7+ {[%clk 00:43:58]} {[%emt
00:06:42]} Ke8 {[%clk 00:27:44]} {[%emt 00:02:13]} 48. Ra7 {[%clk 00:40:28]}
{[%emt 00:03:47]} Rxh4 {[%clk 00:27:12]} {[%emt 00:01:38]} 49. f4 {[%clk
00:40:49]} Rg4 {[%clk 00:25:23]} {[%emt 00:02:17]} 50. Rxa4 {[%clk 00:39:51]}
{[%emt 00:01:14]} h4 {[%clk 00:20:15]} {[%emt 00:05:45]} 51. Ke6 {[%clk
00:39:56]} Kf8 {[%clk 00:19:38]} {[%emt 00:01:12]} 52. e5 {[%clk 00:38:55]}
{[%emt 00:01:48]} Kg7 {[%clk 00:17:48]} {[%emt 00:03:23]} 53. Ra7+ {[%clk
00:37:58]} Kh6 {[%clk 00:11:41]} {[%emt 00:06:50]} 54. f5 {[%clk 00:33:03]}
{[%emt 00:05:31]} gxf5 {[%clk 00:09:19]} {[%emt 00:02:57]} 55. Kxf5 {[%clk
00:29:53]} {[%emt 00:03:57]} Rg7 {[%clk 00:06:45]} {[%emt 00:02:23]} 56. Ra6+
{[%clk 00:26:35]} {[%emt 00:04:27]} Kh5 {[%clk 00:05:51]} {[%emt 00:00:45]} 57.
e6 {[%clk 00:21:31]} {[%emt 00:05:37]} h3 {[%clk 00:04:43]} {[%emt 00:01:35]}
58. Ra8 {[%clk 00:19:16]} {[%emt 00:02:52]} Kh4 {[%clk 00:03:22]} {[%emt
00:01:45]} 59. Kf4 {[%clk 00:17:20]} {[%emt 00:02:43]} Rg4+ {[%clk 00:02:56]}
{[%emt 00:00:38]} 60. Kf5 {[%clk 00:17:08]} {[%emt 00:00:48]} Rg5+ {[%clk
00:03:02]} {[%emt 00:00:33]} 61. Kf6 {[%clk 00:17:26]} {[%emt 00:00:05]} h2
{[%clk 00:02:16]} {[%emt 00:01:06]} 62. e7 {[%clk 00:15:55]} {[%emt 00:02:18]}
h1=Q {[%clk 00:02:06]} {[%emt 00:01:02]} 63. Rh8+ {[%clk 00:16:18]} Rh5 {[%clk
00:02:35]} 64. Rxh5+ {[%clk 00:16:23]} {[%emt 00:00:17]} Kxh5 {[%clk 00:03:04]}
65. e8=Q+ {[%clk 00:16:46]} Kg4 {[%clk 00:03:22]} 66. Qe6+ {[%clk 00:16:32]}
{[%emt 00:00:57]} Kg3 {[%clk 00:03:39]} 67. Qe5+ {[%clk 00:16:44]} {[%emt
00:00:58]} Kg2 {[%clk 00:03:50]} 1/2-1/2

[Event "US Open 2021"]
[Site "Crowne Plaza Cherry Hill, United States"]
[Date "2021.08.01"]
[Round "2.16"]
[White "Vidyarthi, Omya"]
[Black "Chen, Ryo"]
[Result "0-1"]
[TimeControl "40/100;SD/30;+30"]
[WhiteElo "2011"]
[BlackElo "2304"]

1. d4 {[%clk 01:40:56]} Nf6 {[%clk 01:35:27]} {[%emt 00:04:30]} 2. Bg5 {[%clk
01:41:11]} {[%emt 00:01:19]} d5 {[%clk 01:35:33]} 3. Bxf6 {[%clk 01:41:29]}
exf6 4. e3 {[%clk 01:41:44]} {[%emt 00:00:09]} Bd6 {[%clk 01:36:09]} {[%emt
00:00:05]} 5. c4 {[%clk 01:42:02]} {[%emt 00:00:23]} dxc4 {[%clk 01:36:36]} 6.
Bxc4 {[%clk 01:42:19]} {[%emt 00:00:08]} O-O {[%clk 01:37:03]} 7. Nf3 {[%clk
01:42:23]} {[%emt 00:00:22]} Nd7 {[%clk 01:37:23]} {[%emt 00:00:26]} 8. Qc2
{[%clk 01:42:13]} {[%emt 00:00:52]} c6 {[%clk 01:36:32]} {[%emt 00:01:05]} 9.
Nbd2 {[%clk 01:42:03]} {[%emt 00:00:49]} g6 {[%clk 01:29:28]} {[%emt 00:07:18]}
10. a3 {[%clk 01:39:56]} {[%emt 00:03:26]} Nb6 {[%emt 00:03:33]} 11. Bb3 {[%clk
01:38:32]} {[%emt 00:01:44]} Re8 {[%clk 01:18:57]} {[%emt 00:07:33]} 12. h4
{[%clk 01:37:01]} {[%emt 00:02:24]} Bf5 {[%clk 01:17:44]} {[%emt 00:00:59]} 13.
Qc3 {[%clk 01:35:54]} {[%emt 00:02:22]} h5 {[%clk 01:16:11]} {[%emt 00:01:32]}
14. O-O {[%clk 01:34:51]} {[%emt 00:01:54]} Bc7 {[%clk 01:13:09]} {[%emt
00:03:06]} 15. Rfe1 {[%clk 01:32:58]} {[%emt 00:02:44]} Be6 {[%clk 01:10:28]}
{[%emt 00:02:42]} 16. e4 {[%clk 01:31:42]} {[%emt 00:02:03]} Qd7 {[%clk
01:03:25]} {[%emt 00:07: